Cogmind - Beta 14 @@@ ROGUE MODE // 2025.05.05 @ 14:27:52 Player: Rotpup_ Result: Destroyed by UU-E8C(R) with Subdweller Beam Cannon Performance ------------- Evolutions (0) 0 Regions Visited (3) 600 Robots Destroyed (16) 80 Value Destroyed (397) 397 Prototype IDs (1) 20 Alien Tech Used (0) 0 Bonus (0) 0 TOTAL SCORE: 1097 Bonus ------- None Cogmind --------- Core Integrity 0/250 Matter 294/300 Energy 150/150 System Corruption 1% Temperature Cool (9) Movement Walking (120) Location -10/Subcaves Parts ------- > --- POWER (1) -------- Light Angular Momentum Engine > --- PROPULSION (2) --- Carbon-fiber Leg Myomer Leg > --- UTILITY (2) ------ Large Storage Unit Experimental Sensor Array > --- WEAPON (2) ------- Battle Rifle Battle Rifle > --- INVENTORY (15) --- Light Ion Engine Light Ion Engine Neutrino Core Light Treads Light Treads Carbon-fiber Leg Carbon-fiber Leg Small Storage Unit Small Storage Unit Targeting Computer Targeting Computer Scrap Shield Grenade Launcher Peak State ------------ > --- POWER ------------ Light Angular Momentum Engine > --- PROPULSION ------- Carbon-fiber Leg Myomer Leg > --- UTILITY ---------- Large Storage Unit Experimental Sensor Array > --- WEAPON ----------- Battle Rifle Battle Rifle > --- INVENTORY -------- Light Ion Engine Light Ion Engine Neutrino Core Light Treads Light Treads Carbon-fiber Leg Carbon-fiber Leg Flight Unit Flight Unit Small Storage Unit Small Storage Unit Scrap Shield Grenade Launcher [Rating: 31] Favorites ----------- Power Ion Engine Engine Ion Engine Power Core Neutrino Core Propulsion Light Treads Treads Light Treads Leg Carbon-fiber Leg Flight Unit Flight Unit Utility Large Storage Unit Device Experimental Sensor Array Storage Large Storage Unit Weapon Light Assault Rifle Ballistic Gun Light Assault Rifle Build | -11 -10 -10 -10 ------- Run | Yrd Mat Min Sub Slots Evolved . | . . . . Power . | . . . . Propulsion . | . . . . Utility . | . . . . Weapon . | . . . . Parts Attached 26 | 8 4 6 8 Power 6 | 2 1 1 2 Engine 5 | 2 1 1 1 Core 1 | . . . 1 Reactor . | . . . . Propulsion 11 | 2 1 4 4 Treads 6 | 2 1 2 1 Leg 3 | . . . 3 Wheel . | . . . . Hover . | . . . . Flight 2 | . . 2 . Utility 4 | 2 1 1 . Device 1 | . . 1 . Storage 3 | 2 1 . . Processor . | . . . . Hackware . | . . . . Protection . | . . . . Artifact . | . . . . Weapon 5 | 2 1 . 2 Energy Gun . | . . . . Energy Cannon . | . . . . Ballistic Gun 5 | 2 1 . 2 Ballistic Cannon . | . . . . Launcher . | . . . . Special Weapon . | . . . . Impact Weapon . | . . . . Slashing Weapon . | . . . . Piercing Weapon . | . . . . Special Melee Weapon . | . . . . Unidentified Prototypes 1 | . . 1 . Parts Lost 3 | . . 1 2 Power 1 | . . 1 . Propulsion 1 | . . . 1 Utility . | . . . . Weapon 1 | . . . 1 Highest Loss Streak 2 | . . 1 2 To Critical Strikes . | . . . . Average Slot Usage (%) 98 | . 100 98 95 Engine 13 | . 14 12 13 Treads 23 | . 28 28 12 Leg 4 | . . . 14 Device 7 | . . 7 14 Storage 20 | . 28 20 14 Ballistic Gun 27 | . 28 28 25 Peak Build Rating 31 | 7 7 15 31 Average Rating 13 | 5 7 11 23 On Entrance 7 | . 7 7 15 Naked Turns . | . . . . Heaviest Build 36 | 17 33 33 36 Greatest Support 40 | 40 40 40 40 Greatest Overweight (x) 3 | 3 . . 1 Average Overweight (x) . | . . . . Largest Inventory Capacity 15 | 8 15 15 15 Average Capacity 13 | 7 12 15 15 Most Carried 15 | 3 7 9 15 Average Carried 7 | 1 4 7 12 Final Capacity 15 | 8 15 15 15 Final Carried 14 | 2 7 8 14 Class Distribution -------------------- 84% | Mutant 15% | Scavenger-Mutant Dominant Class ---------------- Mutant | -10/Materials Mutant | -10/Mines Scavenger-Mutant | -10/Subcaves Resources | -11 -10 -10 -10 ----------- Run | Yrd Mat Min Sub Matter Collected 611 | 231 156 125 99 Remotely . | . . . . Salvage Created 576 | 99 296 87 94 Parts 31 | 2 13 10 6 Haulers Intercepted . | . . . . Recyclers Shooed 1 | . 1 . . Parts Field Recycled . | . . . . Retrieved Matter . | . . . . Parts Self-Destructed 5 | . . . 5 Prevented . | . . . . Kills | -11 -10 -10 -10 ------- Run | Yrd Mat Min Sub Combat Hostiles Destroyed 15 | . 7 6 2 Guns 15 | . 7 6 2 Classes Destroyed 4 | 1 1 1 1 Recycler 1 | 1 . . . Swarmer 6 | . . 6 . Grunt 7 | . 7 . . Subdweller 2 | . . . 2 Best Kill Streak 3 | 1 2 3 1 Combat Bots Only 3 | . 2 3 1 Max Kills in Single Turn 1 | 1 1 1 1 Gunslinging . | . . . . Exploded . | . . . . Melee . | . . . . Uniques/NPCs Destroyed . | . . . . Combat | -11 -10 -10 -10 -------- Run | Yrd Mat Min Sub Hostile Shots Fired 95 | . 37 46 12 Missed 19 | . 4 9 6 Damage Taken 1048 | . 414 303 331 Core 260 | . 118 39 103 Absorbed by Shields . | . . . . Core Remaining (%) 100 | 100 . . . Volleys Fired 63 | 3 25 20 15 Largest 2 | 2 2 2 2 Hottest 50 | 40 40 40 50 Shots Fired 112 | 6 50 40 16 Gun 112 | 6 50 40 16 Cannon . | . . . . Launcher . | . . . . Special . | . . . . Kinetic 112 | 6 50 40 16 Thermal . | . . . . Explosive . | . . . . Electromagnetic . | . . . . Robot Hit Streak 12 | 6 12 6 7 Robot Miss Streak 6 | . 3 6 1 Penetration Max . | . . . . Secondary Targets . | . . . . Shots Hit Robots 70 | 6 36 15 13 Core Hits 32 | 2 19 9 2 Critical Kills . | . . . . Critical Parts Destroyed . | . . . . Critical Strikes . | . . . . Melee Attacks . | . . . . Impact . | . . . . Slashing . | . . . . Piercing . | . . . . Sneak Attacks . | . . . . Combat Hostiles . | . . . . Follow-up Attacks . | . . . . Damage Inflicted 615 | 46 301 158 110 Guns 611 | 46 297 158 110 Cannons . | . . . . Explosions . | . . . . Melee . | . . . . Ramming 4 | . 4 . . Kinetic 611 | 46 297 158 110 Thermal . | . . . . Explosive . | . . . . Electromagnetic . | . . . . Impact . | . . . . Slashing . | . . . . Piercing . | . . . . Highest Corruption 1 | . 1 1 1 Average Corruption 1 | . 1 1 1 Corruption Purged . | . . . . Corruption Blocked . | . . . . Effects 4 | . . 3 1 Message Errors 2 | . . 1 1 Heat Flow Errors 1 | . . 1 . Energy Discharges 1 | . . 1 . Overload Shots . | . . . . Overflow Damage . | . . . . Projectiles . | . . . . Explosions . | . . . . Melee . | . . . . Knockbacks . | . . . . Impact . | . . . . Kinetic . | . . . . Secondary . | . . . . Self-Inflicted Damage . | . . . . Shots . | . . . . Rammed 1 | . 1 . . Targets Rammed 1 | . 1 . . Kicked . | . . . . Crushed . | . . . . Highest Temperature 238 | . 58 238 . Average Temperature 52 | . 30 128 . Received Heat Transfer 279 | . 243 . 36 Siege Activations . | . . . . Robots Corrupted . | . . . . Combat Hostiles . | . . . . Parts Fried . | . . . . Impact Corruptions . | . . . . Robots Melted . | . . . . Combat Hostiles . | . . . . Parts Melted . | . . . . Heat Transferred . | . . . . Parts Sabotaged . | . . . . Parts Stolen . | . . . . Parts Stripped . | . . . . Power Chain Reactions . | . . . . Alert | -11 -10 -10 -10 ------- Run | Yrd Mat Min Sub Peak Influence 279 | 5 218 279 . Initial 84 | . 3 84 . Average 153 | 2 140 194 . Maximum Alert Level 1 | . 1 1 . Low Security (%) 58 | 100 62 46 . Level 1 41 | . 37 53 . Level 2 . | . . . . Level 3 . | . . . . Level 4 . | . . . . Level 5 . | . . . . High Security . | . . . . Max Security . | . . . . Squads Dispatched 3 | . 3 . . Investigation 1 | . 1 . . Extermination . | . . . . Reinforcement 2 | . 2 . . Assault . | . . . . Garrison . | . . . . Intercept . | . . . . Searches Triggered . | . . . . Construction Impeded . | . . . . Haulers Reinforced . | . . . . Active Scanning Responses . | . . . . Cargo Convoy Interrupts . | . . . . Stealth | -11 -10 -10 -10 --------- Run | Yrd Mat Min Sub Distress Signals 1 | . 1 . . Communications Jammed . | . . . . Distress Signals . | . . . . Times Spotted 30 | . 14 9 7 Peak Tracking Total 4 | . 3 3 4 Tactical Retreats 1 | . . 1 . Traps | -11 -10 -10 -10 ------- Run | Yrd Mat Min Sub Traps Triggered 4 | . . . 4 Indirectly . | . . . . Trap Hack Attempts . | . . . . Triggered . | . . . . Disarmed 3 | . 3 . . Reprogrammed . | . . . . Reused . | . . . . Traps Extracted . | . . . . Installed . | . . . . Triggered . | . . . . Machines | -11 -10 -10 -10 ---------- Run | Yrd Mat Min Sub Machines Disabled . | . . . . Max in Single Turn . | . . . . Machines Repaired . | . . . . Machines Dismantled . | . . . . Machines Sabotaged . | . . . . Overloaded Fab Kills . | . . . . Hacking | -11 -10 -10 -10 --------- Run | Yrd Mat Min Sub Machines Accessed 2 | . 1 1 . Terminals 2 | . 1 1 . Fabricators . | . . . . Repair Stations . | . . . . Recycling Units . | . . . . Scanalyzers . | . . . . Garrison Access . | . . . . Total Hacks 5 | . 2 3 . Successful 3 | . 1 2 . Failed 2 | . 1 1 . Catastrophic . | . . . . Database Lockouts . | . . . . Manual 1 | . 1 . . Terminals 5 | . 2 3 . Fabricators . | . . . . Repair Stations . | . . . . Recycling Units . | . . . . Scanalyzers . | . . . . Garrison Access . | . . . . Terminal Hacks 3 | . 1 2 . Record 1 | . . 1 . Disarm Traps 1 | . 1 . . Zone Layout 1 | . . 1 . Fabricator Hacks . | . . . . Repair Station Hacks . | . . . . Recycling Unit Hacks . | . . . . Scanalyzer . | . . . . Garrison Access Hacks . | . . . . Unauthorized Hacks . | . . . . Terminals . | . . . . Fabricators . | . . . . Repair Stations . | . . . . Recycling Units . | . . . . Scanalyzers . | . . . . Garrison Access . | . . . . Data Cores Recovered . | . . . . Used . | . . . . Hacking Detections 1 | . 1 . . Full Trace Events 1 | . 1 . . Feedback Events 1 | . 1 . . Corruption 1 | . 1 . . Feedback Blocked . | . . . . Robot Schematics Acquired . | . . . . Robots Built . | . . . . Authchips . | . . . . Time . | . . . . Total Robot Build Rating . | . . . . Part Schematics Acquired . | . . . . Parts Built . | . . . . Authchips . | . . . . Time . | . . . . Total Part Build Rating . | . . . . Parts Repaired . | . . . . Time . | . . . . Parts Recycled . | . . . . Recycled Matter . | . . . . Retrieved Matter . | . . . . Retrieved Components . | . . . . Parts Scanalyzed . | . . . . Part Schematics Acquired . | . . . . Parts Damaged . | . . . . Bothacking | -11 -10 -10 -10 ------------ Run | Yrd Mat Min Sub Used RIF Installer . | . . . . Robots Hacked . | . . . . Non-combat . | . . . . Combat . | . . . . Robot Hacks Applied . | . . . . Relay Couplers Released . | . . . . Fabnet Peak Effective % . | . . . . Robots Rewired . | . . . . Allies Hacked . | . . . . Hacks Repelled . | . . . . Allies | -11 -10 -10 -10 -------- Run | Yrd Mat Min Sub Total Allies . | . . . . Largest Group . | . . . . Highest-Rated Group . | . . . . Highest-Rated Ally . | . . . . Total Orders . | . . . . Ally Attacks . | . . . . Total Damage . | . . . . Kills . | . . . . Allies Corrupted . | . . . . Allies Melted . | . . . . Intel | -11 -10 -10 -10 ------- Run | Yrd Mat Min Sub Robot Analysis Total . | . . . . Derelict Logs Recovered 1 | . . 1 . Drone Launches . | . . . . Drone Recoveries . | . . . . Exploration | -11 -10 -10 -10 ------------- Run | Yrd Mat Min Sub Turns Passed 1446 | 107 398 523 418 Spaces Moved 667 | 57 173 195 242 Core 22 | 22 . . . Treads 491 | 35 173 195 88 Legs 154 | . . . 154 Wheels . | . . . . Hover . | . . . . Flight . | . . . . Fastest Speed 50 | 50 160 160 120 Average Speed 152 | 144 160 160 141 Slowest Speed 240 | 200 160 160 240 Overloaded Moves . | . . . . Propulsion Burnouts . | . . . . Robots Hopped . | . . . . Cave-ins Triggered . | . . . . Exploration Rate (%) 25 | 4 32 43 23 Regions Visited 3 Branch Regions 2 Pre-discovered Areas . | . . . . Known Exits Taken 1 | . . 1 . Unknown Exits Taken 2 | 1 1 . . Scrap Searched 1 | . . 1 . Spaces Dug . | . . . . Terrain Destroyed . | . . . . Melee . | . . . . Projectile . | . . . . AOE . | . . . . Terrain Rammed . | . . . . Walls Destroyed . | . . . . Machines Disabled . | . . . . Actions | -11 -10 -10 -10 --------- Run | Yrd Mat Min Sub Total 1001 | 76 251 369 305 Wait 204 | . 42 143 19 Move 664 | 56 172 194 242 Hop . | . . . . Pick Up 33 | 9 6 4 14 Fast Attach . | . . . . Attach 10 | 7 . 1 2 Detach . | . . . . Swap 16 | 1 4 5 6 Drop 10 | . 1 2 7 Fire 63 | 3 25 20 15 Melee . | . . . . Ram . | . . . . Kick . | . . . . Crush 1 | . 1 . . Escape Stasis . | . . . . Rewire . | . . . . Trap . | . . . . Miscellaneous . | . . . . Route ------- -11/Scrapyard -10/Materials -10/Mines (discovered 2 exits: [*Mat] / *Sub) -10/Subcaves History --------- Turn | Location | Event 27 | -11/Scrapyard | Discovered new exit (range 16) 108 | -11/Scrapyard | Entered Materials 320 | -10/Materials | Build established: Mutant 401 | -10/Materials | Discovered new exit (range 16) 506 | -10/Materials | Entered Mines 555 | -10/Mines | Identified exit to Subcaves 597 | -10/Mines | Found a damaged Exp. Sensor Array with a note attached 600 | -10/Mines | Found Prototype Device 618 | -10/Mines | Core integrity fell below 50% 746 | -10/Mines | Identified Exp. Sensor Array 876 | -10/Mines | Discovered new exit (range 7) 1029 | -10/Mines | Entered Subcaves 1161 | -10/Subcaves | Ambushed by swarm of Subdwellers 1213 | -10/Subcaves | Lost 4 allies 1218 | -10/Subcaves | Core integrity fell below 20% 1446 | -10/Subcaves | Disturbed a concealed Subdweller 1447 | -10/Subcaves | Destroyed by UU-E8C(R) with Subdweller Beam Cannon Last Messages --------------- Subatomizers dissect the Sub. Monowheel. Acquired Targeting Computer. Dropped Targeting Computer. Acquired Targeting Computer. Subatomizers dissect the Sub. Monowheel. Dropped Flight Unit. Acquired Targeting Computer. Subatomizers dissect the Sub. Monowheel. Acquired 10 matter. WPJBEOM3IOEBVUU6PP Y7O2 Triggered Shrapnel Trap. An expanding cloud of shrapnel blasts out in all directions. Triggered Piercing Trap. Spikes shoot up from the floor. Critical hit (Impale). O7-XYE(z): "She is not going to be happy we haven't found any suitable candidates yet." UU-E8C(R) angrily emerges from the Twisted Machinery. Map ----- +----------------------------------------------------+ | ?????????????????????????????????????????????????? | | ?????????????????????????????????????????????????? | | ?????????????????????????????????????????????????? | | ?????????????????????????????????????????????????? | | ?????????????????????????????????????????????????? | | ?????????????????????????????????????????????????? | | ?????????????????????????????????????????????????? | | ?????????????????????????????????????????????????? | | ?????????????????????????????????????????????????? | | ?????????????????????????????????????????????????? | | ?????????????????????????????????????????????????? | | ?????????????????????????????????????????????????? | | ?????????????????????????????????????????????????? | | ?????????????????????????????????????????????????? | | ?????????????????????????????????????????????????? | | ?????????????????????????????????????????????????? | | ?????????????????????????????????????????????????? | | ?????????????????????????????????????????????????? | | ?????????????????????????????????????????????????? | | ?????????????????????????????????????????????????? | | ?????????????????????????????????????????????????? | | ???????????????????????##????????????????????????? | | ???????????????????????#